[Event "Biel Festival Masters Blitz 2024"]
[White "Keymer,Vincent"]
[Black "Le,Quang Liem"]
[Site "Biel"]
[Round "2.3"]
[Annotator "TA"]
[Result "0-1"]
[Date "2024.07.21"]
[WhiteElo "2721"]
[BlackElo "2731"]
[PlyCount "94"]
[TimeControl "180+2"]

{[%evp 47,93,-68,-55,-119,-112,-120,-120,-374,-366,-351,-211,-391,-219,-210,0,0,75,0,0,-26,44,0,127,129,125,130,133,38,41,-698,-672,-688,-678,-787,-793,-1067,0,-486,-478,-441,-461,-29984,-29984,-29981,-4722,-29998,-29999,-29999]} 1. d4 {[%emt 0:0:2]} Nf6 {[%emt 0:0:1]} 2. c4 {[%emt 0:0:1]} e6 {[%emt 0:0:1]} 3. Nc3 {[%emt 0:0:2]} d5 {[%emt 0:0:0]} 4. cxd5 {[%emt 0:0:0]} exd5 {[%emt 0:0:1]} 5. Bg5 {[%emt 0:0:1]} c6 {[%emt 0:0:1]} 6. e3 {[%emt 0:0:1]} h6 {[%emt 0:0:1]} 7. Bh4 {[%emt 0:0:1]} Be7 {[%emt 0:0:2]} 8. Bd3 {[%emt 0:0:1]} O-O {[%emt 0:0:2]} 9. Bg3 {[%emt 0:0:1]} Re8 {[%emt 0:0:2]} 10. h3 {[%emt 0:0:1]} c5 {[%emt 0:0:4]} 11. Nf3 {[%emt 0:0:2]} a6 {[%emt 0:0:6]} 12. O-O {[%emt 0:0:32]} c4 {[%emt 0:0:1]} 13. Bb1 {[%emt 0:0:22]} b5 {[%emt 0:0:4]} 14. a3 {[%emt 0:0:10]} Bb7 {[%emt 0:0:9]} 15. Ne5 {[%emt 0:0:2]} Nbd7 {[%emt 0:0:9]} 16. f4 {[%emt 0:0:7]} Ne4 {[%emt 0:0:8]} 17. Bxe4 {[%emt 0:0:17]} dxe4 {[%emt 0:0:2]} 18. Qh5 {[%emt 0:0:3]} Rf8 {[%emt 0:0:14]} 19. Nxd7 {[%emt 0:0:2]} Qxd7 {[%emt 0:0:1]} 20. f5 {[%emt 0:0:1]} a5 {[%emt 0:0:28]} 21. Qg4 {[%emt 0:0:46]} Rfe8 {[%emt 0:0:17]} 22. Be5 {[%emt 0:0:18]} Bg5 {[%emt 0:0:24]} 23. Rae1 {[%emt 0:0:21]} f6 {[%emt 0:0:5]} 24. Bg3 {[%emt 0:0:9]} b4 {[%emt 0:0:1]} 25. h4 {[%emt 0:0:6]} (25. Nb1 $15 )bxc3 $17 {[%emt 0:0:13]} 26. hxg5 {[%emt 0:0:1]} cxb2 {[%emt 0:0:9]} 27. gxf6 $2 {[%emt 0:0:14][%mdl 8192]} (27. Qe2 $17 )c3 $19 {[%emt 0:0:2]} 28. Rf2 {[%emt 0:0:8]} Ba6 {[%emt 0:0:10]} 29. fxg7 $2 {[%emt 0:0:3]} (29. Rb1 )Qxg7 {[%emt 0:0:12]} (29... Bd3 $142 30. Qh5 c2 (30... b1=R $2 31. Rxb1 c2 32. Rc1 $18 )31. Rxc2 Bxc2 )30. Qh3 $19 {[%emt 0:0:1]} (30. Qxg7+ $2 Kxg7 31. Rc2 Rac8 $19 )Kh7 $2 {[%emt 0:0:21]} (30... Rf8 $1 $19 {[%cal Oh6h5] ...h5! would now be deadly.} 31. f6 Qg5 (31... Rxf6 32. Rxf6 Qxf6 33. Qg4+ Qg7 34. Qe6+ Qf7 35. Qg4+ Qg7 36. Qe6+ Qf7 37. Qg4+ Kh7 38. Qxe4+ Qg6 39. Qxa8 $11 )32. Qe6+ Rf7 )31. f6 $11 {[%emt 0:0:2]} Bc8 {[%emt 0:0:9]} (31... Qf7 $1 $11 32. Qf5+ Kh8 (32... Qg6 $2 33. Qd7+ Kh8 34. f7 $18 ))32. Qh2 {[%emt 0:0:3]} (32. fxg7 $16 {White threatens Qh5 and mate.} Bxh3 33. gxh3 )Qf7 $11 {[%emt 0:0:2]} 33. Bf4 {[%emt 0:0:1]} Qg6 {[%emt 0:0:3]} (33... Qxf6 $2 34. Bxh6 Qg6 (34... Qxh6 $2 35. Rf7+ Kg6 36. Rf6+ Kxf6 37. Qxh6+ Ke7 38. Qg5+ Kd7 39. Qd5+ Ke7 40. Qxa8 $18 )35. Rf6 $18 )(33... h5 $1 $11 )34. Be5 {[%emt 0:0:3]} Ra7 {[%emt 0:0:4]} (34... Bd7 $11 )35. d5 $16 {[%emt 0:0:2]} Rb7 {[%emt 0:0:1]} 36. Rb1 $1 {[%emt 0:0:2]} (36. Bxc3 $2 b1=Q (36... b1=B 37. f7 $16 )(36... b1=R $2 37. Qd6 $19 )37. Rxb1 Rxb1+ $19 )Rb3 {[%emt 0:0:7]} 37. f7 {[%emt 0:0:1]} ({Better is} 37. Bd4 $16 {Intending Qc7+ and mate.} Qf7 38. Rc2 )Rf8 $14 {[%emt 0:0:0] [#]} 38. Bxc3 $2 {[%emt 0:0:3][%mdl 8192]} (38. Qh4 $1 $14 Qg5 (38... Rxf7 $2 39. Qd8 $18 )39. Qxg5 (39. Qxe4+ Qg6 $19 )hxg5 40. Rc2 )Rxc3 $19 {[%emt 0:0:1]} 39. Rfxb2 {[%emt 0:0:3]} Rxf7 {[%emt 0:0:3]} 40. Qe5 {[%emt 0:0:1]} Rxe3 {[%emt 0:0:6]} 41. Rb6 {[%emt 0:0:1]} Qg3 $2 {[%emt 0:0:3]} ({Black should try} 41... Qg4 $19 42. R6b2 Rg7 (42... Rxa3 $2 43. Re1 $19 ))42. Qh5 $2 {[%emt 0:0:3][%mdl 8192]} (42. Rxh6+ $1 $11 Kxh6 43. Rb6+ Kh7 44. Qh5+ Kg8 (44... Kg7 45. Qh6+ Kg8 46. Rg6+ $14 )45. Rg6+ Rg7 46. Rxg3 Rexg3 47. Qe8+ Kh7 48. Qxc8 (48. Qh5+ Kg8 $11 ))Qf2+ $19 {[%emt 0:0:2]} 43. Kh1 {[%emt 0:0:1] [#]} Qf4 $1 {[%emt 0:0:3]} ({Inferior is} 43... Rxa3 44. Qxh6+ (44. Rxh6+ Kg8 45. Rh8+ Kg7 46. Qh6# )Kg8 45. Rg6+ )44. Rd1 {[%emt 0:0:4]} (44. Qg6+ $19 Kh8 45. Rd6 )Rg3 {[%emt 0:0:1]} 45. Re1 {[%emt 0:0:2]} Rgg7 {[%emt 0:0:2]} (45... Rg4 $142 46. Qxh6+ Qxh6+ 47. Rxh6+ Kxh6 48. Kg1 Bf5 49. Kf2 Be6+ 50. Ke3 Bxd5 51. Kd4 Rd7 52. g3 Rxg3 53. Kc5 Rxa3 54. Rh1+ Kg5 55. Rh8 e3 56. Kb5 Rc3 57. Re8 Bc6+ 58. Ka6 Ra7+ 59. Kxa7 Bxe8 60. Kb7 e2 61. Kb8 e1=Q (61... e1=R {is a self mate.} 62. Kb7 Rb1+ 63. Ka8 Rc8+ 64. Ka7 Bf7 65. Ka6 Ra8# )62. Kb7 Qb1+ 63. Ka6 Qb8 64. Kxa5 Qb5# )46. Rxe4 {[%emt 0:0:2]} Qf1+ {[%emt 0:0:3]} 47. Kh2 {[%emt 0:0:0]} Qxg2# {[%emt 0:0:2]} 0-1

[Event "Biel Festival Masters Blitz 2024"]
[White "Le,Quang Liem"]
[Black "Mishra,Abhimanyu"]
[Site "Biel"]
[Round "3.1"]
[Annotator "TA"]
[Result "1/2-1/2"]
[Date "2024.07.21"]
[WhiteElo "2731"]
[BlackElo "2627"]
[PlyCount "94"]
[TimeControl "180+2"]

{[%evp 12,94,0,0,0,0,0,0,0,0,0,-6,0,0,0,-16,0,-4,0,-12,0,0,0,0,0,0,0,0,0,0,0,0,0,-22,0,14,15,8,17,0,0,0,0,0,0,0,0,-8,0,0,0,0,0,0,0,0,0,0,0,0,0,0,0,0,0,0,0,0,-6,-14,0,0,0,0,0,0,0,0,0,0,0,0,0,0,0]} 1. c4 {[%emt 0:0:1]} c6 {[%emt 0:0:0]} 2. Nf3 {[%emt 0:0:1]} d5 {[%emt 0:0:1]} 3. d4 {[%emt 0:0:1]} Nf6 {[%emt 0:0:1]} 4. Nc3 {[%emt 0:0:1]} e6 {[%emt 0:0:0]} 5. cxd5 {[%emt 0:0:2]} exd5 {[%emt 0:0:1]} 6. Bf4 {[%emt 0:0:1]} Bf5 {[%emt 0:0:6]} 7. e3 {[%emt 0:0:3] The position is equal.} Nbd7 {[%emt 0:0:4]} 8. h3 {[%emt 0:0:1]} h6 {[%emt 0:0:7]} 9. a3 {[%emt 0:0:19]} Nb6 {[%emt 0:0:4]} 10. g4 {[%emt 0:0:3]} Bh7 {[%emt 0:0:5]} 11. Bd3 {[%emt 0:0:2]} Bxd3 {[%emt 0:0:2]} 12. Qxd3 {[%emt 0:0:2]} Bd6 {[%emt 0:0:6]} 13. Ne5 {[%emt 0:0:2]} Qe7 {[%emt 0:0:10]} 14. O-O-O {[%emt 0:0:6]} O-O-O {[%emt 0:0:15]} (14... O-O {is interesting.} 15. Qf5 Ne4 16. Nxe4 dxe4 17. g5 hxg5 18. Bxg5 Qe6 )15. Rhe1 {[%emt 0:0:5]} Rhe8 {[%emt 0:0:18]} 16. Kb1 {[%emt 0:0:11]} Kb8 {[%emt 0:0:8][%cal Of6e4]} 17. f3 {[%emt 0:0:19][%cal Bf2f3,Bf3f4][%mdl 32]} g5 {[%emt 0:0:26]} 18. Bh2 {[%emt 0:0:7]} Nfd7 {[%emt 0:0:2][%cal Rd7e5]} 19. f4 {[%emt 0:0:14]} f6 {[%emt 0:0:4]} 20. Nf3 {[%emt 0:0:3]} Qf8 {[%emt 0:0:31]} 21. Re2 {[%emt 0:0:24]} Ka8 {[%emt 0:0:11]} 22. Rf1 {[%emt 0:0:5]} gxf4 {[%emt 0:0:11]} 23. Bxf4 {[%emt 0:0:2]} Bxf4 {[%emt 0:0:4]} 24. exf4 {[%emt 0:0:1]} Rxe2 $1 {[%emt 0:0:6]} 25. Nxe2 {[%emt 0:0:4][%cal Bc3e2,Be2g3,Bg3f5][%mdl 32]} Nc4 {[%emt 0:0:1]} 26. Ng3 {[%emt 0:0:18]} Ndb6 {[%emt 0:0:7]} 27. Nd2 {[%emt 0:0:8]} Re8 {[%emt 0:0:1]} 28. Nf5 {[%emt 0:0:6] Dodges Re3} a6 {[%emt 0:0:5]} 29. Nxc4 {[%emt 0:0:11]} Nxc4 {[%emt 0:0:2]} 30. Ka2 {[%emt 0:0:3]} Re4 {[%emt 0:0:3]} 31. Rf2 {[%emt 0:0:4]} Qe8 {[%emt 0:0:20]} 32. b3 {[%emt 0:0:4]} Nb6 {[%emt 0:0:12]} ({Avoid the trap} 32... Ne3 $2 33. Nd6 (33. Nxh6 Qg6 $17 )Qe6 34. Nxe4 Qxe4 35. Qd2 $18 )33. Nd6 {[%emt 0:0:1]} Qe6 {[%emt 0:0:4]} 34. Nxe4 {[%emt 0:0:2]} dxe4 $11 {[%emt 0:0:1][%mdl 4096] Endgame. KQR-KQN} 35. f5 {[%emt 0:0:6]} ({But not} 35. Re2 $2 exd3 36. Rxe6 d2 37. Rxf6 d1=Q $19 (37... d1=B $2 {is the wrong capture.} 38. Rxh6 Kb8 39. g5 $18 ))Qe7 {[%emt 0:0:3]} 36. Qc2 {[%emt 0:0:6] [#] Threatens to win with Qc5.} Nd5 {[%emt 0:0:2]} 37. Qc5 {[%emt 0:0:5] Strongly threatening Qxe7.} (37. Re2 $5 )Qe8 {[%emt 0:0:1] ...e3 would now be deadly.} 38. Kb2 {[%emt 0:0:16]} e3 {[%emt 0:0:1]} 39. Re2 {[%emt 0:0:1]} Nf4 {[%emt 0:0:2][%csl LRe2,LRh3]} (39... Qe4 $5 40. Qf8+ $8 Ka7 41. Qc5+ Ka8 42. Qf8+ Ka7 43. Qc5+ Ka8 $11 )40. Qc2 {[%emt 0:0:8]} Nxe2 {[%emt 0:0:6]} 41. Qxe2 {[%emt 0:0:1] KQ-KQ} Qe4 {[%emt 0:0:1]} 42. Kc3 {[%emt 0:0:1]} Ka7 {[%emt 0:0:3]} 43. a4 {[%emt 0:0:3]} b6 {[%emt 0:0:2]} 44. Qc4 {[%emt 0:0:5]} e2 {[%emt 0:0:3]} 45. Qf7+ {[%emt 0:0:1]} Kb8 {[%emt 0:0:1]} 46. Qf8+ {[%emt 0:0:1]} Kb7 {[%emt 0:0:2]} 47. Qf7+ {[%emt 0:0:2]} Kb8 {[%emt 0:0:1] A balanced but interesting game.   Weighted Error Value: White=0.02 (flawless) /Black=0.02 (flawless) .  Inaccurate:     	---       	Black=1      OK:         	White=22    	Black=21     Best:        	White=1     	---        Strong:       	---       	Black=1} 1/2-1/2

[Event "Biel Festival Masters Blitz 2024"]
[White "Shankland,Sam"]
[Black "Keymer,Vincent"]
[Site "Biel"]
[Round "3.2"]
[Annotator "TA"]
[Result "1-0"]
[Date "2024.07.21"]
[WhiteElo "2683"]
[BlackElo "2721"]
[PlyCount "117"]
[TimeControl "180+2"]

{[%evp 9,117,2,17,32,30,31,37,29,24,15,31,26,29,32,30,-15,-13,-9,-6,-8,-6,0,0,-49,0,-15,0,-16,0,-9,0,-1,38,-28,11,12,40,27,153,163,173,168,169,18,8,-463,-453,-457,-459,-432,-443,-29998,297,301,646,102,810,461,427,475,840,478,912,886,922,887,1017,1036,1141,806,1087,980,1258,1302,1426,128,135,147,128,0,168,0,0,0,0,0,0,0,0,0,0,0,0,0,0,0,0,0,0,0,0,0,0,0,0,0,0,0,29979,29980]} 1. e4 {[%emt 0:0:1]} e5 {[%emt 0:0:1]} 2. Nf3 {[%emt 0:0:2]} Nc6 {[%emt 0:0:1]} 3. Bb5 {[%emt 0:0:1]} a6 {[%emt 0:0:0]} 4. Bxc6 {[%emt 0:0:1]} dxc6 {[%emt 0:0:1]} 5. O-O {[%emt 0:0:1]} Qf6 {[%emt 0:0:6]} 6. d4 {[%emt 0:0:2]} exd4 {[%emt 0:0:2]} 7. Bg5 {[%emt 0:0:2]} Qd6 {[%emt 0:0:13]} 8. Nxd4 {[%emt 0:0:2] White is slightly better.} Be7 {[%emt 0:0:8]} 9. Be3 {[%emt 0:0:1]} Nf6 {[%emt 0:0:10]} 10. f3 {[%emt 0:0:23]} c5 {[%emt 0:0:1]} 11. Ne2 {[%emt 0:0:7]} Be6 {[%emt 0:0:8]} 12. Nd2 {[%emt 0:0:25]} O-O-O {[%emt 0:0:18]} 13. Nf4 {[%emt 0:0:3]} Nd7 {[%emt 0:0:22]} 14. Qe2 {[%emt 0:0:12]} g5 {[%emt 0:0:16]} 15. Nxe6 {[%emt 0:0:4]} Qxe6 {[%emt 0:0:1]} 16. Nb3 {[%emt 0:0:24]} (16. b3 $11 {deserves consideration.} )Qc6 {[%emt 0:0:17]} (16... Rhe8 $15 {is superior.} )17. Rad1 {[%emt 0:0:5]} Ne5 {[%emt 0:0:4]} 18. Bf2 {[%emt 0:0:11]} h5 {[%emt 0:0:8]} 19. Rfe1 {[%emt 0:0:14][%cal Od1d5]} h4 {[%emt 0:0:4]} 20. Rd5 {[%emt 0:0:3]} Ng6 {[%emt 0:0:6]} 21. Red1 {[%emt 0:0:8]} (21. Bxc5 $2 Rxd5 22. Bxe7 Re5 $19 )(21. Nxc5 Nf4 22. Qc4 h3 $15 (22... Nxd5 23. exd5 Rxd5 24. Rxe7 $16 ))(21. Rf5 $14 )Rxd5 {[%emt 0:0:40]} 22. exd5 {[%emt 0:0:1]} Qf6 {[%emt 0:0:1]} 23. Nxc5 {[%emt 0:0:8]} Nf4 {[%emt 0:0:2]} (23... Qxb2 $11 {keeps the balance.} 24. Qe4 Qe5 )24. Qe4 $1 $16 {[%emt 0:0:7][%cal Od5d6]} Bxc5 {[%emt 0:0:15]} 25. Bxc5 {[%emt 0:0:1] aiming for Bd4.} Rd8 {[%emt 0:0:5]} 26. Be7 $2 {[%emt 0:0:2]} ({White should play} 26. Bd4 $18 Qd6 27. Qf5+ Kb8 28. Qxg5 (28. Qxf7 Ne2+ 29. Kf1 Nxd4 $14 ))Qb6+ $11 {[%emt 0:0:0]} 27. Kh1 $2 {[%emt 0:0:4][%mdl 8192]} (27. Kf1 $1 $11 {and White is okay.} Qb5+ 28. Kf2 )Qf2 $19 {[%emt 0:0:10][%csl Gf4][%cal Rf2g2]} 28. Rg1 {[%emt 0:0:10] [#]} (28. Bxg5 $2 Qxg2# )(28. Qf5+ Kb8 29. Qg4 (29. Bxd8 $2 Qxg2# )(29. Qxg5 $2 h3 $19 )f5 (29... Rxd5 $2 30. Rg1 $19 )(29... Rxd5 $2 30. Rg1 $19 ))h3 $1 {[%emt 0:0:1]} 29. gxh3 {[%emt 0:0:4] [#]} Rh8 {[%emt 0:0:0][%cal Of2h2] ( -> ...Qxh2+!)} 30. Bxg5 {[%emt 0:0:16]} (30. Rxg5 $19 Nxh3 31. Bc5 (31. Qg4+ $2 Kb8 $19 )Qxc5 32. Qe5 )Nxh3 $4 {[%emt 0:0:7][%mdl 8192]} (30... Qxh2+ $1 {mates} 31. Kxh2 Rxh3# )31. Be3 $18 {[%emt 0:0:1] Qf5+ is the strong threat.} Qe2 $2 {[%emt 0:0:7]} (31... Kb8 32. Bxf2 Nxf2+ 33. Kg2 Nxe4 )32. Bd4 $2 {[%emt 0:0:28]} (32. Qf5+ $18 {is the precise move to win.} Kb8 33. Qxh3 (33. Qf6 $2 Re8 $19 ))Qd2 $2 {[%emt 0:0:6][%mdl 8192]} (32... Nf2+ $16 33. Bxf2 Qxf2 )33. Qf5+ {[%emt 0:0:3]} (33. Bxh8 $2 {loses.} Nf2+ 34. Kg2 Nxe4+ 35. Kh3 Qh6+ 36. Kg2 Qg5+ (36... Qxh8 $2 37. fxe4 Qxb2 38. h4 $19 )37. Kf1 Nd2+ (37... Qxd5 $2 38. Rg8+ Kd7 39. fxe4 $19 )38. Kf2 Qh4+ (38... Qxd5 $2 39. Rg8+ Kd7 40. Ke2 $19 )39. Rg3 Qxh2+ (39... Qxh8 $2 40. a3 $19 )40. Rg2 Qxh8 $19 )Kb8 {[%emt 0:0:1]} 34. Bxh8 {[%emt 0:0:2]} Nf2+ {[%emt 0:0:3]} 35. Kg2 {[%emt 0:0:1][%cal Oh8c3]} Ne4+ {[%emt 0:0:2]} (35... Ng4+ $142 36. Kh3 Qxh2+ 37. Kxg4 Qxg1+ 38. Kh4 Qh2+ 39. Qh3 Qd2 )36. Kh3 {[%emt 0:0:2]} Qh6+ {[%emt 0:0:3]} 37. Kg4 {[%emt 0:0:9]} Nd6 {[%emt 0:0:3]} 38. Qf6 {[%emt 0:0:2]} Qxh2 {[%emt 0:0:1]} 39. Rg3 {[%emt 0:0:4] Hoping for Qd8+.} Ka7 {[%emt 0:0:2]} 40. Qd4+ {[%emt 0:0:1]} b6 {[%emt 0:0:1]} 41. Be5 {[%emt 0:0:1]} f5+ {[%emt 0:0:1]} 42. Kf4 $2 {[%emt 0:0:1]} (42. Kg5 $18 )Qh6+ $16 {[%emt 0:0:3]} 43. Rg5 {[%emt 0:0:1]} Qh4+ {[%emt 0:0:1]} 44. Ke3 {[%emt 0:0:2]} (44. Rg4 $1 $16 {[%cal Rg4h4]} fxg4 45. fxg4 )Qxg5+ $11 {[%emt 0:0:1][%mdl 4096] Endgame. KQB-KQN} (44... Qe1+ $1 $11 45. Kf4 Qh4+ 46. Rg4 fxg4 47. fxg4 Nf7 )45. Bf4 $2 {[%emt 0:0:1]} (45. Kf2 $18 )Qg1+ {[%emt 0:0:2]} 46. Kd3 {[%emt 0:0:1]} Qd1+ {[%emt 0:0:1]} 47. Ke3 {[%emt 0:0:2]} Qe1+ {[%emt 0:0:2]} 48. Kd3 {[%emt 0:0:2] Bxd6 would now be deadly.} Qf1+ {[%emt 0:0:1]} 49. Kd2 {[%emt 0:0:3] Threatens to win with Bxd6.} Qxf3 {[%emt 0:0:5]} 50. Bxd6 {[%emt 0:0:1]} Qg2+ $1 {[%emt 0:0:3]} 51. Kc3 {[%emt 0:0:1]} cxd6 {[%emt 0:0:1] KQ-KQ} 52. a4 {[%emt 0:0:2]} Kb7 {[%emt 0:0:1]} 53. b4 {[%emt 0:0:1]} Qg3+ {[%emt 0:0:4]} 54. Kb2 {[%emt 0:0:2]} b5 {[%emt 0:0:1] White must now prevent ...Qe5.} 55. a5 {[%emt 0:0:5] And now Qb6+ would win.} Qe5 {[%emt 0:0:1]} 56. Kc3 {[%emt 0:0:1][%cal Bb2c3,Bc3d3,Bd3e3][%mdl 32]} Kc7 {[%emt 0:0:4]} (56... f4 $5 57. Kd3 $8 Kc8 $11 )57. Kd3 {[%emt 0:0:0]} Qg3+ {[%emt 0:0:3]} 58. Qe3 {[%emt 0:0:2]} Qxe3+ {[%emt 0:0:6][%mdl 8192]} (58... f4 59. Qxg3 fxg3 60. Ke2 g2 61. Kf2 g1=R 62. Kxg1 Kd7 63. Kf2 )(58... Qe5 $11 59. Qa7+ Kd8 )59. Kxe3 {Weighted Error Value: White=0.93/Black=0.51.  Loses game:     	White=1     	Black=3      Missed win:     	White=2     	Black=1      Mistake:       	White=5     	Black=3      Inaccurate:     	White=2     	Black=3      OK:         	White=13    	Black=19     Best:        	White=4     	Black=4      Strong:       	White=1     	Black=2} 1-0

[Event "Biel Festival Masters Blitz 2024"]
[White "Praggnanandhaa R"]
[Black "Martirosyan,Haik M."]
[Site "Biel"]
[Round "3.3"]
[Annotator "TA"]
[Result "1/2-1/2"]
[Date "2024.07.21"]
[WhiteElo "2747"]
[BlackElo "2662"]
[PlyCount "151"]
[TimeControl "180+2"]

{[%evp 82,151,56,57,56,50,49,48,134,18,187,68,94,68,122,122,122,122,122,0,210,33,48,8,8,8,8,0,0,0,8,8,8,8,8,8,8,8,8,8,8,8,8,8,8,0,8,0,8,8,8,8,8,8,8,8,8,8,8,8,8,8,8,8,8,8,8,8,8,8,8,0]} 1. d4 {[%emt 0:0:1]} Nf6 {[%emt 0:0:1]} 2. Bg5 {[%emt 0:0:1]} d5 {[%emt 0:0:5]} 3. e3 {[%emt 0:0:1]} e6 {[%emt 0:0:8]} 4. Nf3 {[%emt 0:0:2]} Be7 {[%emt 0:0:2]} 5. Nbd2 {[%emt 0:0:2]} Nbd7 {[%emt 0:0:4]} 6. Bd3 {[%emt 0:0:1]} b6 {[%emt 0:0:2]} 7. a4 {[%emt 0:0:13]} a6 {[%emt 0:0:2]} 8. c3 {[%emt 0:0:3]} Bb7 {[%emt 0:0:1]} 9. O-O {[%emt 0:0:3]} Ne4 {[%emt 0:0:5]} 10. Bxe7 {[%emt 0:0:9]} Qxe7 {[%emt 0:0:2]} 11. Qc2 {[%emt 0:0:17]} Nxd2 {[%emt 0:0:8]} 12. Nxd2 {[%emt 0:0:3]} c5 {[%emt 0:0:15]} 13. f4 {[%emt 0:0:8]} f5 {[%emt 0:0:11]} 14. Nf3 {[%emt 0:0:6]} O-O {[%emt 0:0:3]} 15. Kh1 {[%emt 0:0:2]} c4 {[%emt 0:0:2]} 16. Be2 {[%emt 0:0:1]} b5 {[%emt 0:0:1]} 17. b4 {[%emt 0:0:18]} Bc6 {[%emt 0:0:13]} 18. axb5 {[%emt 0:0:24]} axb5 {[%emt 0:0:1]} 19. Qb2 {[%emt 0:0:2]} Qd6 {[%emt 0:0:10]} 20. h3 {[%emt 0:0:1]} Ra4 {[%emt 0:0:13]} 21. Ra3 {[%emt 0:0:22]} Rxa3 {[%emt 0:0:5]} 22. Qxa3 {[%emt 0:0:1]} Ra8 {[%emt 0:0:1]} 23. Qb2 {[%emt 0:0:1]} Ra7 {[%emt 0:0:12]} 24. Ra1 {[%emt 0:0:3]} Qc7 {[%emt 0:0:9]} 25. Bd1 {[%emt 0:0:14]} Qb8 {[%emt 0:0:18]} 26. Kg1 {[%emt 0:0:6]} Qa8 {[%emt 0:0:1]} 27. Rxa7 {[%emt 0:0:1]} Qxa7 {[%emt 0:0:1]} 28. Kf1 {[%emt 0:0:1]} Nf6 {[%emt 0:0:6]} 29. Ne5 {[%emt 0:0:3]} Be8 {[%emt 0:0:0]} 30. Ke1 {[%emt 0:0:4]} g6 {[%emt 0:0:6]} 31. Kd2 {[%emt 0:0:5]} Ne4+ {[%emt 0:0:4]} 32. Kc1 {[%emt 0:0:2]} Kg7 {[%emt 0:0:2]} 33. Bc2 {[%emt 0:0:7]} Nd6 {[%emt 0:0:2]} 34. Kb1 {[%emt 0:0:0]} Nf7 {[%emt 0:0:6]} 35. Nf3 {[%emt 0:0:1]} Nd6 {[%emt 0:0:2]} 36. Qc1 {[%emt 0:0:2]} Nc8 {[%emt 0:0:9]} 37. Ne5 {[%emt 0:0:6]} Nb6 {[%emt 0:0:2]} 38. g4 {[%emt 0:0:4]} Qe7 {[%emt 0:0:5]} 39. Kb2 {[%emt 0:0:9]} Qa7 {[%emt 0:0:9]} 40. Qe1 {[%emt 0:0:8]} Na4+ {[%emt 0:0:11]} 41. Kb1 {[%emt 0:0:7]} Nb6 {[%emt 0:0:3]} 42. Qh4 {[%emt 0:0:5]} Qc7 $1 {[%emt 0:0:1]} 43. Kb2 {[%emt 0:0:2]} Nc8 {[%emt 0:0:0]} 44. Qg3 {[%emt 0:0:5]} Qe7 {[%emt 0:0:5]} (44... Kf8 $14 )45. h4 {[%emt 0:0:4]} (45. gxf5 $16 exf5 46. Bxf5 )Nb6 $2 {[%emt 0:0:9]} (45... fxg4 $11 {and Black stays safe.} 46. Qxg4 Nd6 )46. h5 {[%emt 0:0:10]} (46. gxf5 $18 exf5 47. Bxf5 Na4+ 48. Kc2 )Qf6 {[%emt 0:0:4]} 47. Qg1 {[%emt 0:0:6]} Na4+ {[%emt 0:0:5]} (47... Kf8 $14 )48. Bxa4 $16 {[%emt 0:0:2]} bxa4 {[%emt 0:0:1]} 49. hxg6 {[%emt 0:0:10]} hxg6 {[%emt 0:0:2] [#]} 50. Qh2 {[%emt 0:0:4]} (50. g5 $1 $16 {[%cal Rg5f6]} Qf8 51. Qh2 )g5 $2 {[%emt 0:0:11] [#]} (50... fxg4 $1 $11 51. Nxg4 Qf5 )51. Qg3 $2 {[%emt 0:0:2]} ({White has to play} 51. Qg2 $1 $18 )gxf4 $1 $14 {[%emt 0:0:10]} 52. exf4 {[%emt 0:0:1]} fxg4 {[%emt 0:0:1]} 53. Qxg4+ {[%emt 0:0:1]} Kf8 {[%emt 0:0:2]} 54. Ka3 {[%emt 0:0:3]} (54. Qg5 {simplifies} Qxg5 55. fxg5 Kg7 56. Ka2 )Qh6 {[%emt 0:0:5]} 55. Qg5 {[%emt 0:0:7]} Qxg5 {[%emt 0:0:2]} 56. fxg5 {[%emt 0:0:1]} Kg7 {[%emt 0:0:1]} 57. Kb2 {[%emt 0:0:2]} Bb5 {[%emt 0:0:2]} 58. Ka2 {[%emt 0:0:2]} ({But not} 58. Ka3 $6 Be8 $16 )Be8 {[%emt 0:0:1]} 59. Ka3 {[%emt 0:0:1]} Bb5 {[%emt 0:0:1]} 60. Kb2 {[%emt 0:0:3]} Be8 {[%emt 0:0:1]} 61. Kc1 {[%emt 0:0:1]} Bb5 {[%emt 0:0:0]} 62. Kb1 {[%emt 0:0:3]} Be8 {[%emt 0:0:1]} 63. Kb2 {[%emt 0:0:0]} Bb5 {[%emt 0:0:1]} 64. Ka3 {[%emt 0:0:3]} Be8 {[%emt 0:0:1]} 65. g6 {[%emt 0:0:5]} Bb5 {[%emt 0:0:4]} 66. Nf7 {[%emt 0:0:1]} Kxg6 {[%emt 0:0:4]} 67. Nd6 {[%emt 0:0:0]} Bd7 {[%emt 0:0:8]} 68. b5 {[%emt 0:0:1]} Kf6 $1 {[%emt 0:0:3]} 69. b6 {[%emt 0:0:1]} Bc6 $1 {[%emt 0:0:1]} 70. b7 {[%emt 0:0:4]} Bxb7 $1 {[%emt 0:0:1]} 71. Nxb7 {[%emt 0:0:1]} e5 {[%emt 0:0:1]} 72. dxe5+ {[%emt 0:0:6]} (72. Kxa4 $2 {loses.} e4 73. Kb5 e3 $19 )Kxe5 {[%emt 0:0:0]} 73. Na5 {[%emt 0:0:2]} (73. Kxa4 $5 d4 $8 74. Ka3 $11 )Ke4 {[%emt 0:0:2]} 74. Kxa4 {[%emt 0:0:3]} d4 {[%emt 0:0:3]} 75. cxd4 $1 {[%emt 0:0:1]} Kxd4 {[%emt 0:0:1]} 76. Nxc4 {[%emt 0:0:0]} 1/2-1/2